bitfinex-derivatives/quotes_ETHF0:USTF0_20250910
["timestamp","ask_amount","ask_price","bid_price","bid_amount"]
[1757513607207,0.9744,4436.2,4436.1,1.73996324]
[1757513607395,1.3536,4436.2,4436.1,0.9562]
[1757513607584,1.3536,4436.2,4436.0,0.78376324]
[1757513607792,0.5947,4436.1,4436.0,0.78376324]
[1757513608088,1.5973,4436.0,4435.9,0.78376324]
[1757513608290,0.2437,4435.5,4435.4,0.78376324]
[1757513608490,0.7589,4435.2,4435.1,0.9562]
[1757513608686,1.3536,4435.2,4435.1,0.9562]
[1757513609896,1.3536,4435.2,4435.1,1.3297]
[1757513610399,0.5947,4435.8,4435.2,0.5896]
[1757513610596,1.6066,4436.1,4435.6,0.78492234]
[1757513610893,1.3536,4435.7,4435.6,1.74112234]
[1757513611096,1.3536,4435.7,4435.6,2.11462234]
[1757513611798,0.3797,4435.7,4435.6,2.11462234]
[1757513612188,3.2078,4436.2,4436.1,1.3297]
[1757513612397,3.5875,4436.2,4436.1,1.3297]
[1757513612689,4.1822,4436.2,4436.1,1.3297]
[1757513613397,4.1822,4436.2,4434.7,0.5896]
[1757513613398,0.22542,4436.1,4434.7,0.5896]
[1757513613592,0.22542,4436.1,4434.4,4.38421836]
[1757513613593,3.2078,4435.0,4434.6,0.5896]
[1757513613898,0.252,4434.9,4434.6,0.5896]
[1757513614494,0.252,4434.8,4434.6,0.5896]
[1757513615190,3.2078,4435.0,4434.6,0.5896]
[1757513615395,0.252,4434.9,4434.6,0.5896]
[1757513616290,3.2078,4435.6,4435.5,0.2429]
[1757513616492,3.4598,4435.6,4435.5,0.8325]
[1757513617094,7.4598,4435.6,4435.0,0.2429]
[1757513617292,3.2078,4435.1,4435.0,0.8325]
[1757513617500,3.4598,4435.1,4435.0,0.8325]
[1757513617699,3.2078,4435.1,4435.0,0.8325]
[1757513617900,3.4598,4435.1,4435.0,0.8325]
[1757513618199,3.2078,4435.1,4435.0,0.8325]
[1757513618500,3.4598,4435.1,4435.0,0.8325]
[1757513619297,3.2078,4435.1,4435.0,0.8325]
[1757513619502,0.252,4435.2,4435.1,0.5896]
[1757513620199,3.2078,4436.0,4435.1,0.5896]
[1757513620597,0.252,4435.9,4435.1,0.5896]
[1757513621103,3.2078,4436.0,4435.1,0.5896]
[1757513621303,3.2078,4435.5,4435.0,0.2429]
[1757513621499,0.252,4435.4,4435.1,0.5896]
[1757513621798,0.252,4435.4,4435.0,0.2429]
[1757513621994,4.252,4435.4,4434.6,0.5896]
[1757513622195,3.2078,4435.0,4434.6,0.5896]
[1757513622395,0.252,4434.9,4434.6,0.5896]
[1757513622604,0.252,4434.9,4434.5,0.2429]
[1757513622605,0.252,4434.9,4434.5,0.8325]
[1757513622998,0.252,4434.9,4434.5,0.2429]
[1757513623202,0.252,4434.9,4434.6,0.5896]
[1757513623398,0.252,4434.9,4434.5,0.2429]
[1757513623700,32.472,4436.2,4434.6,0.5896]
[1757513623701,3.2078,4435.5,4434.6,0.5896]
[1757513624002,3.2078,4435.5,4434.5,0.2429]
[1757513624003,0.252,4435.4,4435.1,0.5535]
[1757513624299,0.252,4435.3,4435.1,0.5535]
[1757513624693,3.2078,4435.5,4435.1,0.5535]
[1757513624901,0.252,4435.4,4435.1,0.5535]
[1757513625498,3.2078,4435.5,4435.1,0.5535]
[1757513625699,0.252,4435.3,4435.1,0.5535]
[1757513626605,3.2078,4435.5,4435.1,0.5535]
[1757513626807,0.252,4435.4,4435.1,0.5535]
[1757513627001,3.2078,4435.5,4435.1,0.5535]
[1757513627206,0.252,4435.6,4435.5,0.7809]
[1757513629108,3.2078,4436.0,4435.5,0.2274]
[1757513629406,0.252,4435.9,4435.5,0.2274]
[1757513629803,0.252,4435.9,4435.6,0.5535]
[1757513630007,0.252,4435.9,4435.5,0.2274]
[1757513630204,0.2254,4435.8,4435.5,0.2274]
[1757513630604,0.2254,4435.8,4435.6,0.5535]
[1757513630803,0.2254,4435.8,4435.7,0.5535]
[1757513631002,0.2254,4435.8,4435.7,0.9421]
[1757513631503,0.252,4435.9,4435.8,0.5535]
[1757513633409,0.252,4435.9,4435.6,0.5535]
[1757513634307,0.252,4435.9,4435.5,0.616]
[1757513634308,3.2078,4436.0,4435.9,0.5535]
[1757513634509,3.4598,4436.0,4435.9,1.3365]
[1757513635712,3.2078,4436.0,4435.9,1.3365]
[1757513636011,3.4598,4436.0,4435.9,1.3365]
[1757513636815,0.2253,4436.1,4436.0,1.5639]
[1757513637002,0.4773,4436.1,4436.0,1.5639]
[1757513637206,0.252,4436.1,4436.0,1.5639]
[1757513640910,3.4598,4436.1,4436.0,1.5639]
[1757513641318,3.4598,4436.1,4436.0,1.1695]
[1757513642319,3.4598,4436.1,4436.0,0.7809]
[1757513643318,3.4598,4436.1,4436.0,1.56725769]
[1757513643620,3.4598,4436.1,4436.0,2.35025769]
[1757513643816,3.2078,4436.1,4436.0,2.35025769]
[1757513644027,3.4588,4436.1,4436.0,1.5639]
[1757513644315,3.4588,4436.1,4436.0,2.35020552]
[1757513644519,3.4588,4436.1,4436.0,1.56720552]
[1757513645017,3.4588,4436.1,4436.0,0.7809]
[1757513645213,3.4588,4436.1,4436.0,1.1695]
[1757513645415,3.2078,4436.1,4436.0,1.5639]
[1757513645816,0.2253,4436.3,4436.0,1.5639]
[1757513646013,3.2078,4437.4,4437.3,0.9421]
[1757513646214,3.4588,4437.4,4437.3,0.5535]
[1757513646411,7.68416,4437.4,4437.0,1.56701261]
[1757513646608,3.4588,4437.4,4436.9,0.78611261]
[1757513646815,0.22538,4437.3,4436.6,1.17471261]
[1757513647015,3.2078,4436.8,4436.7,2.12261261]
[1757513647214,3.4588,4436.8,4436.7,2.12261261]
[1757513647416,3.2078,4436.8,4436.7,2.12261261]
[1757513647615,0.251,4436.8,4436.7,2.12261261]
[1757513649017,3.2078,4437.5,4437.1,0.9421]
[1757513649214,0.251,4437.4,4437.1,0.5535]
[1757513649819,0.251,4437.4,4437.0,0.2274]
[1757513650724,0.251,4437.4,4437.1,0.5535]
[1757513650920,0.251,4437.4,4437.0,0.2274]
[1757513651116,0.251,4437.4,4437.1,0.5535]
[1757513651422,0.251,4437.4,4437.0,0.2274]
[1757513651720,0.251,4437.4,4437.2,0.5535]
[1757513652021,3.2078,4437.5,4437.4,0.3886]
[1757513652215,3.4588,4437.5,4437.4,0.9421]
[1757513653416,3.2078,4437.5,4437.4,1.3365]
[1757513653616,3.4588,4437.5,4437.4,1.3365]
[1757513654327,3.2078,4437.5,4437.4,1.3365]
[1757513654528,3.4588,4437.5,4437.4,1.3365]
[1757513657226,3.4588,4437.5,4437.4,0.5535]
[1757513658225,3.4588,4437.5,4437.4,0.9439]
[1757513660821,3.4588,4437.5,4437.4,1.3277]
[1757513661127,3.2078,4437.5,4437.4,1.3277]
[1757513661330,3.4588,4437.5,4437.4,1.3277]
[1757513663626,3.4588,4437.5,4437.4,0.5535]
[1757513664029,7.4588,4437.5,4437.1,0.5734]
[1757513664327,3.4588,4437.5,4437.1,0.5734]
[1757513665222,3.4588,4437.5,4437.4,0.3904]
[1757513665432,3.4588,4437.5,4437.4,0.9638]
[1757513667027,3.4588,4437.5,4437.4,0.5734]
[1757513668434,3.4588,4437.5,4437.4,0.9638]
[1757513669331,3.4588,4437.5,4437.4,0.5734]
[1757513670026,3.4588,4437.5,4437.1,0.5734]
[1757513670221,0.22536,4437.4,4436.7,0.78611261]
[1757513670426,3.2078,4436.9,4436.5,0.8008]
[1757513670627,0.25,4436.8,4436.5,0.8008]
[1757513671931,0.25,4436.8,4436.6,0.5734]
[1757513672434,0.25,4436.8,4436.5,0.2274]
[1757513673441,0.25,4436.8,4436.6,0.5734]
[1757513673632,0.25,4436.8,4436.5,0.2274]
[1757513674031,0.25,4436.8,4436.6,0.5734]
[1757513674333,0.25,4436.8,4436.5,0.2274]
[1757513674637,0.25,4436.8,4436.6,0.5734]
[1757513674836,0.25,4436.8,4436.5,0.2274]
[1757513675037,0.25,4436.8,4436.2,0.5734]
[1757513675238,3.2078,4436.3,4436.2,0.5734]
[1757513675538,3.4578,4436.3,4436.2,0.5734]
[1757513676138,3.4578,4436.3,4436.2,1.3476]
[1757513676331,3.4578,4436.3,4436.1,0.5734]
[1757513676732,3.4578,4436.3,4436.0,0.2274]
[1757513676926,3.4578,4436.3,4436.2,1.3476]
[1757513677328,3.2078,4436.3,4436.2,1.3476]
[1757513677534,3.4578,4436.3,4436.2,1.3476]
[1757513679542,3.4578,4436.3,4436.2,0.5734]
[1757513679743,3.4578,4436.3,4436.2,0.9638]
[1757513680743,3.4578,4436.3,4436.2,0.5734]
[1757513680942,3.4578,4436.3,4436.2,0.9638]
[1757513681143,3.4578,4436.3,4436.2,1.3476]
[1757513681443,3.2078,4436.3,4436.2,1.3476]
[1757513681634,3.4578,4436.3,4436.2,1.3476]
[1757513682944,3.4578,4436.3,4436.2,0.5734]
[1757513687948,3.4578,4436.3,4436.2,1.3417]
[1757513688243,3.4568,4436.3,4436.2,1.3417]
[1757513693448,3.2078,4436.3,4436.2,1.3417]
[1757513693650,3.4568,4436.3,4436.2,1.3417]
[1757513693843,3.4568,4436.3,4436.2,0.5734]
[1757513694043,3.4568,4436.3,4436.2,1.3417]
[1757513694649,3.2078,4436.8,4436.7,0.7683]
[1757513694843,3.2078,4437.4,4437.0,0.2192]
[1757513695043,3.2078,4437.4,4437.2,1.3609]
[1757513695244,0.249,4437.3,4437.2,0.7683]
[1757513695750,0.249,4437.3,4437.2,1.3609]
[1757513696344,3.2078,4437.9,4437.5,0.2192]
[1757513696547,0.249,4437.8,4437.7,0.7683]
[1757513696747,3.2078,4437.9,4437.7,0.7683]
[1757513696945,3.2078,4437.9,4437.8,1.3609]
[1757513697148,3.4568,4437.9,4437.8,1.3609]
[1757513697353,3.2078,4437.9,4437.8,1.3609]
[1757513697557,0.249,4437.9,4437.8,1.3609]
[1757513697952,32.473,4438.3,4438.2,0.7683]
[1757513698155,32.473,4438.3,4438.2,1.3609]
[1757513698354,32.722,4438.3,4438.2,1.3609]
[1757513700153,32.473,4438.3,4438.2,1.3609]
[1757513700355,3.2078,4439.5,4439.0,0.2192]
[1757513700558,0.249,4439.4,4439.2,0.5926]
[1757513700855,3.2078,4439.5,4439.3,0.7683]
[1757513701059,3.2078,4440.3,4440.2,0.9658]
[1757513701353,3.4568,4440.3,4440.2,1.3609]
[1757513701754,3.2078,4440.3,4440.2,1.3609]
[1757513701951,3.4568,4440.3,4440.2,1.3609]
[1757513704062,35.6758,4441.6,4440.9,1.3609]
[1757513704258,0.749,4441.0,4440.9,1.3609]
[1757513704659,3.9568,4441.0,4440.9,0.5926]
[1757513704866,3.9568,4441.0,4440.5,0.2192]
[1757513705071,3.9568,4441.0,4440.6,0.5926]
[1757513705469,3.9568,4441.0,4440.8,0.5926]
[1757513705769,3.9568,4441.0,4440.7,0.3732]
[1757513705971,3.7078,4441.0,4440.9,1.3609]
[1757513706167,3.9558,4441.0,4440.9,1.3609]
[1757513707069,0.5,4441.0,4440.9,1.3609]
[1757513707374,0.748,4441.0,4440.9,1.3609]
[1757513707968,3.2078,4442.1,4440.9,5.3609]
[1757513708169,3.2078,4442.1,4442.0,0.9875]
[1757513708369,0.1338,4442.8,4442.1,0.5926]
[1757513708567,3.2078,4443.1,4442.1,0.5926]
[1757513708568,0.248,4442.5,4442.4,0.7683]
[1757513708768,0.248,4442.5,4442.4,1.3609]
[1757513709170,3.6358,4443.1,4443.0,0.2192]
[1757513709372,3.8838,4443.1,4443.0,0.8118]
[1757513709572,3.8838,4443.1,4443.0,1.185]
[1757513709772,3.6358,4443.1,4443.0,1.5801]
[1757513710072,3.2078,4443.1,4443.0,1.5801]
[1757513710474,0.248,4443.1,4443.0,1.5801]
[1757513710866,0.248,4443.1,4443.0,0.9875]
[1757513711068,0.462,4443.1,4443.0,1.185]
[1757513711576,0.248,4443.9,4443.8,0.3732]
[1757513711871,0.248,4443.9,4443.8,4.5687]
[1757513712075,0.248,4443.9,4443.8,3.8004]
[1757513712969,3.2078,4445.3,4444.6,0.5926]
[1757513713169,0.248,4445.2,4444.6,0.5926]
[1757513713364,0.248,4445.2,4445.0,0.2192]
[1757513713570,3.2078,4445.3,4445.0,0.2192]
[1757513713773,3.2078,4445.3,4445.1,0.5926]
[1757513713973,0.248,4445.2,4445.1,0.5926]
[1757513714472,0.248,4445.2,4445.1,4.5926]
[1757513714869,0.248,4445.3,4445.1,4.0]
[1757513715074,0.248,4445.3,4445.2,0.5399]
[1757513715573,32.445,4446.0,4445.6,0.5399]
[1757513715775,0.248,4445.9,4445.6,0.5399]
[1757513716173,32.445,4446.0,4445.6,0.5399]
[1757513716373,0.248,4445.9,4445.6,0.5399]
[1757513716570,0.248,4445.9,4445.5,0.2232]
[1757513716877,0.248,4445.8,4445.6,0.5399]
[1757513717273,0.248,4445.7,4445.6,0.5399]
[1757513719672,32.445,4446.0,4445.6,0.5399]
[1757513719871,0.248,4445.9,4445.6,0.5399]
[1757513720268,32.445,4446.0,4445.6,0.5399]
[1757513720476,0.248,4445.9,4445.6,0.5399]
[1757513720679,3.2078,4446.6,4446.5,0.2232]
[1757513720985,3.4558,4446.6,4446.5,0.7631]
[1757513721672,3.2078,4447.2,4446.6,0.5399]
[1757513721874,0.248,4447.1,4447.0,0.2232]
[1757513722075,0.248,4447.1,4447.0,0.7631]
[1757513722578,0.247,4447.1,4446.5,0.2232]
[1757513722775,0.247,4447.1,4446.6,0.5399]
[1757513723177,0.247,4447.0,4446.6,0.5399]
[1757513723478,0.4433,4447.0,4446.9,0.9291]
[1757513723876,0.6396,4447.0,4446.9,0.9291]
[1757513724076,0.6396,4447.0,4446.9,0.5399]
[1757513725176,0.3926,4447.0,4446.9,0.9291]
[1757513725376,0.6396,4447.0,4446.9,0.5399]
[1757513725576,0.1227,4446.9,4446.1,0.5399]
[1757513725782,0.247,4446.8,4446.1,0.5399]
[1757513726076,0.3926,4446.2,4446.1,0.9291]
[1757513726385,0.3926,4446.2,4445.5,0.2232]
[1757513726387,0.6396,4446.2,4445.5,0.2232]
[1757513726586,0.6396,4446.2,4444.5,0.2232]
[1757513726587,0.1227,4446.0,4444.5,0.2232]
[1757513726887,0.1227,4446.0,4444.0,0.2232]
[1757513726888,0.1227,4445.8,4444.3,0.5399]
[1757513727074,3.2078,4445.3,4444.3,0.5399]
[1757513727269,0.1227,4445.1,4444.3,0.5399]
[1757513727471,3.2078,4444.5,4443.9,3.2078]
[1757513727675,0.247,4444.4,4443.8,0.5399]
[1757513727877,3.2078,4444.0,4443.0,0.2232]
[1757513728084,3.2078,4443.5,4442.9,3.2078]
[1757513728281,0.4718,4443.4,4442.9,3.2078]
[1757513728683,0.1227,4443.3,4442.4,0.5399]
[1757513728880,0.2248,4443.4,4442.6,0.5399]
[1757513729179,0.1227,4443.1,4442.5,0.2232]
[1757513729481,0.1227,4443.1,4442.3,0.5399]
[1757513729676,0.1227,4443.1,4442.2,3.2078]
[1757513729881,3.3305,4443.0,4442.2,3.2078]
[1757513730383,3.3305,4443.0,4442.3,0.5399]
[1757513730686,0.1227,4442.8,4442.2,3.2078]
[1757513732484,0.1227,4442.8,4441.9,0.5399]
[1757513733187,0.1227,4442.8,4442.0,0.2232]
[1757513733578,0.1227,4442.8,4442.1,0.5399]
[1757513734277,3.2078,4443.0,4442.1,0.5399]
[1757513734485,0.247,4442.7,4442.1,0.5399]
[1757513735685,0.247,4442.7,4442.5,0.2232]
[1757513735883,0.247,4442.7,4442.6,0.5399]
[1757513736278,3.2078,4443.0,4442.6,0.5399]
[1757513736482,0.1227,4442.8,4442.5,0.2232]
[1757513736683,0.247,4442.9,4442.2,0.5399]
[1757513737383,0.247,4442.8,4442.2,0.5399]
[1757513738290,3.3305,4442.4,4442.2,0.5399]
[1757513738491,0.247,4442.3,4442.2,0.5399]
[1757513741388,0.247,4442.3,4442.0,0.2232]
[1757513741389,0.3697,4442.3,4442.0,0.7631]
[1757513741785,0.3697,4442.3,4442.1,0.5399]
[1757513741786,32.428,4442.3,4442.1,0.5399]
[1757513741986,0.247,4442.2,4442.1,0.5399]
[1757513742189,32.428,4442.3,4442.1,0.5399]
[1757513742789,31.2419,4442.3,4442.2,4.0]
[1757513743093,0.5539,4442.8,4442.2,4.0]
[1757513743297,0.247,4442.7,4442.6,3.2078]
[1757513743594,0.8009,4442.7,4442.6,3.2078]
[1757513744494,0.5539,4442.7,4442.6,3.2078]
[1757513744693,0.8009,4442.7,4442.6,3.2078]
[1757513745089,0.2193,4442.5,4442.0,3.2078]
[1757513745392,0.5706,4442.4,4442.0,3.2078]
[1757513745593,0.247,4442.3,4442.0,3.2078]
[1757513745987,0.247,4442.3,4441.4,3.2078]
[1757513746188,0.247,4442.3,4439.2,0.78611261]
[1757513746189,0.7899,4441.5,4440.9,3.2078]
[1757513746391,0.7899,4441.0,4440.9,3.2078]
[1757513746794,0.7899,4441.0,4440.9,7.2078]
[1757513746795,0.2193,4441.0,4440.9,7.2078]
[1757513746995,0.2193,4441.5,4440.9,7.43298]
[1757513747291,0.7899,4441.0,4440.9,3.2078]
[1757513747996,0.2193,4441.0,4440.9,7.2078]
[1757513748490,0.2193,4441.5,4440.9,7.2078]
[1757513748690,0.7899,4441.5,4441.4,3.2078]
[1757513750093,0.2193,4443.0,4441.4,10.08150306]
[1757513750291,0.2193,4443.5,4442.9,3.2078]
[1757513750498,0.2193,4444.0,4443.0,0.246]
[1757513750695,0.7899,4444.0,4443.0,3.11970306]
[1757513751692,0.7899,4444.0,4443.1,4.0]
[1757513751995,0.2193,4444.0,4443.2,2.92305474]
[1757513752198,0.2193,4444.5,4443.9,3.2078]
[1757513752394,0.7899,4444.5,4444.4,3.2078]
[1757513753700,0.2193,4444.5,4444.4,7.2078]
[1757513754295,0.7899,4444.5,4444.4,7.2078]
[1757513755298,0.7899,4444.5,4444.4,3.2078]
[1757513756199,0.2193,4444.0,4443.8,3.2078]
[1757513756395,0.5706,4443.9,4443.8,3.2078]
[1757513757997,0.5706,4443.9,4442.0,3.2078]
[1757513757998,0.5706,4442.9,4442.0,3.2078]
[1757513758194,0.5706,4442.9,4442.0,3.7087]
[1757513758195,0.246,4442.8,4442.0,3.7087]
[1757513759796,0.246,4442.7,4442.1,0.5009]
[1757513760292,0.191,4443.0,4442.1,0.5009]
[1757513760600,0.246,4443.5,4442.7,0.5009]
[1757513760792,0.7899,4444.0,4442.7,0.5009]
[1757513761008,0.246,4443.5,4442.7,0.5009]
[1757513762304,0.246,4443.6,4442.7,0.5009]
[1757513762497,0.2193,4443.5,4442.7,0.5009]
[1757513762703,0.246,4443.6,4442.7,0.5009]
[1757513762898,3.2078,4444.1,4442.7,0.5009]
[1757513762899,3.2078,4444.1,4442.7,0.246]
[1757513763204,3.2078,4444.7,4444.1,0.5009]
[1757513767001,0.5706,4444.6,4443.7,3.2078]
[1757513767207,0.5706,4444.4,4443.7,3.2078]
[1757513767707,3.2078,4444.1,4443.1,3.2078]
[1757513767905,0.7899,4444.0,4443.1,3.2078]
[1757513768902,0.5706,4444.0,4443.2,0.5009]
[1757513769404,0.2193,4445.0,4443.0,0.167]
[1757513769405,0.246,4444.6,4444.1,0.5009]
[1757513769600,0.8166,4445.2,4444.6,0.5009]
[1757513770608,0.5706,4445.2,4444.6,0.5009]
[1757513771407,3.4538,4445.4,4444.6,0.5009]
[1757513772295,0.246,4445.4,4445.0,3.2078]
[1757513772498,0.5706,4445.9,4445.0,3.2078]
[1757513772700,0.246,4445.8,4445.1,0.5009]
[1757513773310,3.2078,4446.1,4445.1,0.5009]
[1757513773701,3.2078,4446.1,4445.2,2.91927433]
[1757513773903,3.2078,4446.1,4445.4,0.5009]
[1757513774099,0.8166,4446.4,4445.4,0.5009]
[1757513774306,0.608,4445.9,4444.8,3.7233]
[1757513774499,0.608,4445.7,4444.8,3.2078]
[1757513774810,0.608,4444.9,4444.8,3.2078]
[1757513775011,0.608,4445.4,4444.8,3.2078]
[1757513775812,0.608,4444.9,4444.8,3.2078]
[1757513778114,0.2211,4445.0,4444.1,3.2078]
[1757513778610,0.608,4444.9,4444.1,3.2078]
[1757513778907,0.608,4444.4,4444.1,3.2078]
[1757513779115,0.608,4444.2,4444.1,3.2078]
[1757513779418,0.245,4444.3,4443.6,3.2078]
[1757513779913,0.608,4444.2,4443.6,3.2078]
[1757513781314,0.608,4443.9,4443.6,3.2078]
[1757513781513,0.2211,4444.0,4443.6,3.2078]
[1757513781713,0.608,4443.9,4443.6,3.2078]
[1757513782020,0.245,4444.2,4443.6,3.2078]
[1757513782511,0.2211,4444.0,4443.6,3.2078]
[1757513783220,0.608,4445.9,4443.8,0.5155]
[1757513783526,0.8291,4446.0,4445.4,3.2078]
[1757513783916,0.8291,4445.5,4445.4,3.2078]
[1757513784214,0.8291,4445.5,4444.9,3.2078]
[1757513785113,0.608,4445.4,4444.9,3.2078]
[1757513785321,0.608,4444.9,4444.4,3.2078]
[1757513785620,0.2211,4445.0,4444.4,3.2078]
[1757513785919,0.8291,4444.5,4444.4,3.2078]
[1757513786218,0.4341,4444.5,4443.9,3.2078]
[1757513786717,0.608,4444.4,4443.9,3.2078]
[1757513786923,0.4341,4444.5,4443.9,3.2078]
[1757513787212,0.2211,4444.0,4443.9,3.2078]
[1757513787421,0.608,4443.9,4443.1,3.2078]
[1757513787613,0.245,4443.8,4443.1,3.2078]
[1757513787814,0.608,4443.7,4443.1,3.2078]
[1757513789416,0.245,4443.8,4443.1,3.2078]
[1757513789622,0.2211,4443.5,4443.1,3.2078]
[1757513791122,0.608,4443.4,4443.1,3.2078]
[1757513791617,0.2211,4443.5,4443.1,3.2078]
[1757513792013,0.608,4443.4,4443.1,3.2078]
[1757513792217,0.608,4443.4,4442.4,3.2078]
[1757513792218,0.2211,4442.5,4442.4,3.2078]
[1757513792420,1.0741,4442.5,4442.4,3.2078]
[1757513792617,0.2211,4442.0,4441.8,3.2078]
[1757513792822,0.608,4441.9,4441.8,3.2078]
[1757513795326,4.608,4441.9,4441.8,3.2078]
[1757513796023,4.853,4441.9,4441.8,3.2078]
[1757513796726,4.853,4441.9,4440.7,0.5155]
[1757513796727,0.608,4441.4,4441.3,3.2078]
[1757513796930,0.608,4440.9,4440.8,3.2078]
[1757513797131,0.853,4440.9,4440.8,3.2078]
[1757513798027,0.245,4441.2,4440.8,3.2078]
[1757513798537,0.245,4441.2,4440.9,0.5155]
[1757513798721,0.608,4441.4,4440.9,0.5155]
[1757513798921,0.608,4441.2,4440.9,0.5155]
[1757513799120,0.245,4441.3,4440.8,3.2078]
[1757513799425,0.245,4441.3,4440.9,0.5155]
[1757513799626,0.245,4441.2,4440.8,3.7233]
[1757513800033,0.245,4441.2,4440.8,3.2078]
[1757513800331,0.608,4440.9,4440.8,3.2078]
[1757513801030,3.8158,4441.4,4440.8,3.7233]
[1757513801334,0.853,4441.3,4440.9,0.5155]
[1757513801730,0.608,4441.2,4440.8,3.2078]
[1757513801931,0.608,4441.2,4440.9,0.5155]
[1757513802132,0.245,4441.1,4440.9,0.5155]
[1757513802438,0.608,4442.3,4441.1,0.5155]
[1757513802631,0.245,4442.2,4441.5,0.5155]
[1757513803134,0.608,4442.1,4441.5,0.5155]
[1757513803337,0.8291,4441.5,4441.4,3.2078]
[1757513803638,0.4661,4441.5,4440.8,3.2078]
[1757513803829,0.608,4441.4,4440.8,3.2078]
[1757513804733,0.587,4441.4,4440.8,3.2078]
[1757513805532,0.245,4441.3,4440.8,3.2078]
[1757513805735,0.245,4441.3,4440.9,0.4941]
[1757513805935,0.245,4441.3,4440.8,3.2078]
[1757513806136,0.587,4441.2,4440.8,3.2078]
[1757513806336,0.832,4441.3,4440.8,3.2078]
[1757513806536,0.832,4441.3,4440.9,0.4941]
[1757513806833,0.832,4441.3,4440.8,3.2078]
[1757513807134,0.587,4441.9,4440.9,0.4941]
[1757513807339,0.245,4441.8,4441.3,3.2078]
[1757513807639,0.245,4441.8,4441.4,0.4941]
[1757513807835,0.587,4441.7,4441.3,3.2078]
[1757513808037,0.2182,4441.5,4441.3,3.2078]
[1757513808233,0.2182,4441.5,4440.9,0.4941]
[1757513808540,0.587,4441.4,4440.7,3.2078]
[1757513808737,0.2182,4441.5,4440.7,3.2078]
[1757513809434,0.587,4441.4,4440.7,3.2078]
[1757513809634,0.2182,4441.5,4440.7,3.2078]
[1757513810138,0.2182,4441.0,4440.7,3.2078]
[1757513810433,0.587,4441.3,4440.7,3.2078]
[1757513810637,0.787,4441.2,4440.7,3.2078]
[1757513810936,0.587,4441.1,4440.7,3.2078]
[1757513811135,0.245,4441.0,4440.8,0.4941]
[1757513811735,0.245,4441.0,4440.7,3.2078]
[1757513812039,0.245,4441.0,4440.8,0.4885]
[1757513812234,0.245,4441.0,4440.7,3.2078]
[1757513812635,0.8052,4441.5,4440.7,3.2078]
[1757513812833,0.245,4441.4,4440.8,0.4885]
[1757513813234,0.245,4441.3,4440.8,0.4885]
[1757513813542,0.832,4441.3,4440.7,3.6963]
[1757513814141,0.587,4441.3,4440.7,3.6963]
[1757513814443,3.2078,4441.9,4440.8,0.22517]
[1757513814642,0.4632,4441.5,4440.8,0.4885]
[1757513815242,0.4632,4441.5,4440.7,3.2078]
[1757513815442,0.587,4441.4,4440.7,3.6963]
[1757513816240,0.587,4441.8,4440.8,0.4885]
[1757513816558,0.2211,4442.5,4440.8,0.4885]
[1757513816559,0.587,4442.3,4441.0,0.78611261]
[1757513816745,0.245,4442.2,4441.5,0.4885]
[1757513816937,0.587,4442.3,4441.5,0.4885]
[1757513817338,0.245,4442.2,4441.5,0.4885]
[1757513817640,0.245,4442.1,4441.5,0.4885]
[1757513817840,0.587,4442.3,4441.5,0.4885]
[1757513818040,0.245,4442.2,4441.5,0.4885]
[1757513819044,3.2078,4442.4,4441.5,0.4885]
[1757513819242,0.245,4442.3,4441.6,0.22513]
[1757513819442,0.245,4442.3,4441.7,0.4885]
[1757513819643,0.245,4442.3,4441.8,0.4885]
[1757513819837,0.245,4442.3,4441.7,0.4885]
[1757513820044,0.587,4443.2,4442.1,0.4885]
[1757513820339,0.245,4443.1,4442.7,0.4885]
[1757513820538,0.245,4443.3,4442.7,0.4885]
[1757513821346,0.587,4442.9,4442.5,0.78611261]
[1757513821543,0.587,4442.9,4442.6,0.4885]
[1757513821738,0.245,4443.2,4442.7,0.4885]
[1757513822040,0.245,4443.2,4442.6,1.27461261]
[1757513822236,0.245,4443.2,4442.6,0.4885]
[1757513822437,0.245,4443.2,4442.7,0.4885]
[1757513822745,0.245,4443.2,4442.8,0.4885]
[1757513823043,0.245,4443.2,4442.7,0.78611261]
[1757513823245,0.2182,4443.5,4443.1,3.2078]
[1757513823546,0.245,4443.4,4443.2,0.4885]
[1757513823840,0.587,4444.1,4443.4,0.4885]
[1757513824039,0.587,4444.1,4443.6,3.2078]
[1757513824540,0.587,4444.3,4443.7,0.4885]
[1757513824734,0.244,4444.2,4443.6,3.2078]
[1757513824935,0.244,4444.2,4443.6,3.6963]
[1757513825336,0.587,4444.3,4443.6,3.6963]
[1757513825538,0.244,4444.2,4443.7,0.4885]
[1757513826048,0.8052,4445.5,4444.2,0.4885]
[1757513826342,0.587,4445.9,4445.1,0.4885]
[1757513827238,3.7948,4445.9,4445.1,0.4885]
[1757513827434,0.587,4445.8,4445.0,3.2078]
[1757513828848,0.587,4445.9,4445.0,3.2078]
[1757513829049,3.2078,4445.8,4445.0,3.2078]
[1757513829249,0.587,4445.7,4445.0,3.2078]